[Event "Live Chess"]
[Site "Chess.com"]
[Date "2023.05.21"]
[Round "-"]
[White "laminaaprod"]
[Black "WelshTiger"]
[Result "1/2-1/2"]
[WhiteElo "2262"]
[BlackElo "2362"]
[TimeControl "300"]
[EndTime "18:11:18 PDT"]
[Termination "Game drawn by repetition"]

1. d4 {[%clk 0:04:56.9]} 1... d5 {[%clk 0:04:48.6]} 2. c4 {[%clk 0:04:55.7]}
2... e6 {[%clk 0:04:47.7]} 3. Nf3 {[%clk 0:04:52.3]} 3... Nf6 {[%clk 0:04:45.6]}
4. g3 {[%clk 0:04:46.8]} 4... c5 {[%clk 0:04:42.2]} 5. cxd5 {[%clk 0:04:45.6]}
5... exd5 {[%clk 0:04:41]} 6. Bg2 {[%clk 0:04:44.2]} 6... Nc6 {[%clk 0:04:40.3]}
7. O-O {[%clk 0:04:43.4]} 7... Be7 {[%clk 0:04:39.8]} 8. Nc3 {[%clk 0:04:41.6]}
8... O-O {[%clk 0:04:37.6]} 9. Bg5 {[%clk 0:04:41.2]} 9... c4 {[%clk 0:04:36.4]}
10. Ne5 {[%clk 0:04:36.7]} 10... Be6 {[%clk 0:04:35.4]} 11. b3 {[%clk 0:04:28]}
11... Qa5 {[%clk 0:04:33.2]} 12. Nxc6 {[%clk 0:04:16]} 12... bxc6 {[%clk
0:04:31.5]} 13. Na4 {[%clk 0:04:15.9]} 13... h6 {[%clk 0:04:24.9]} 14. Bxf6
{[%clk 0:04:06.8]} 14... Bxf6 {[%clk 0:04:23.4]} 15. Nc5 {[%clk 0:04:06.7]}
15... cxb3 {[%clk 0:03:20.9]} 16. axb3 {[%clk 0:03:48.2]} 16... Qb4 {[%clk
0:03:19.1]} 17. e3 {[%clk 0:03:47.1]} 17... a5 {[%clk 0:03:13.2]} 18. Qc2 {[%clk
0:03:34.9]} 18... Rfb8 {[%clk 0:03:06.8]} 19. Nxe6 {[%clk 0:03:18.5]} 19... fxe6
{[%clk 0:03:06.7]} 20. Qxc6 {[%clk 0:03:17.5]} 20... Qb6 {[%clk 0:03:01.1]} 21.
Qxb6 {[%clk 0:03:02.8]} 21... Rxb6 {[%clk 0:03:01]} 22. Rfb1 {[%clk 0:03:01.9]}
22... Kf7 {[%clk 0:02:55.9]} 23. Kf1 {[%clk 0:03:00.3]} 23... Be7 {[%clk
0:02:52.6]} 24. Ke2 {[%clk 0:02:55.9]} 24... Bb4 {[%clk 0:02:51.5]} 25. Rc1
{[%clk 0:02:53.2]} 25... Ra7 {[%clk 0:02:49.5]} 26. Kd3 {[%clk 0:02:46]} 26...
Bd6 {[%clk 0:02:48.3]} 27. Rcb1 {[%clk 0:02:36.1]} 27... Rab7 {[%clk 0:02:42.4]}
28. Rxa5 {[%clk 0:02:25.9]} 28... Rxb3+ {[%clk 0:02:41.2]} 29. Rxb3 {[%clk
0:02:25.8]} 29... Rxb3+ {[%clk 0:02:40.3]} 30. Ke2 {[%clk 0:02:25.7]} 30... Rb2+
{[%clk 0:02:39.6]} 31. Kf3 {[%clk 0:02:20.3]} 31... Bb4 {[%clk 0:02:38.5]} 32.
Ra1 {[%clk 0:02:19.9]} 32... Kf6 {[%clk 0:02:34]} 33. g4 {[%clk 0:02:17.9]}
33... g5 {[%clk 0:02:31.6]} 34. Kg3 {[%clk 0:02:13.2]} 34... Bd6+ {[%clk
0:02:30.1]} 35. Kf3 {[%clk 0:02:08.7]} 35... Kg6 {[%clk 0:02:17.9]} 36. Rh1
{[%clk 0:01:58.2]} 36... Bb4 {[%clk 0:02:10.6]} 37. Bf1 {[%clk 0:01:41.4]} 37...
Kf6 {[%clk 0:02:04]} 38. Ba6 {[%clk 0:01:36.3]} 38... Ra2 {[%clk 0:02:00.6]} 39.
Bb5 {[%clk 0:01:34]} 39... Rb2 {[%clk 0:01:59.5]} 40. Be8 {[%clk 0:01:26.3]}
40... e5 {[%clk 0:01:54.2]} 41. dxe5+ {[%clk 0:01:24.8]} 41... Kxe5 {[%clk
0:01:53.5]} 42. h4 {[%clk 0:01:17]} 42... Be7 {[%clk 0:01:52]} 43. hxg5 {[%clk
0:01:13.2]} 43... hxg5 {[%clk 0:01:51.3]} 44. Rd1 {[%clk 0:01:10.6]} 44... Bc5
{[%clk 0:01:47.9]} 45. Bc6 {[%clk 0:00:50]} 45... d4 {[%clk 0:01:45.3]} 46.
exd4+ {[%clk 0:00:49.3]} 46... Bxd4 {[%clk 0:01:44.6]} 47. Bd7 {[%clk
0:00:28.9]} 47... Rxf2+ {[%clk 0:01:42.4]} 48. Kg3 {[%clk 0:00:28]} 48... Rb2
{[%clk 0:01:39.3]} 49. Re1+ {[%clk 0:00:24.3]} 49... Kd6 {[%clk 0:01:35.3]} 50.
Rd1 {[%clk 0:00:23.7]} 50... Rb3+ {[%clk 0:01:27.7]} 51. Kg2 {[%clk 0:00:21.8]}
51... Ke5 {[%clk 0:01:26.8]} 52. Bf5 {[%clk 0:00:20.1]} 52... Be3 {[%clk
0:01:22.6]} 53. Kf3 {[%clk 0:00:18.1]} 53... Bf4+ {[%clk 0:01:20.8]} 54. Ke2
{[%clk 0:00:17.6]} 54... Re3+ {[%clk 0:01:19]} 55. Kf2 {[%clk 0:00:17]} 55...
Rb3 {[%clk 0:01:16.7]} 56. Re1+ {[%clk 0:00:16.5]} 56... Kd5 {[%clk 0:01:13.6]}
57. Re2 {[%clk 0:00:15.7]} 57... Ra3 {[%clk 0:01:07.9]} 58. Be6+ {[%clk
0:00:15]} 58... Kd4 {[%clk 0:01:05.9]} 59. Bf5 {[%clk 0:00:14.9]} 59... Be3+
{[%clk 0:01:03.1]} 60. Kf3 {[%clk 0:00:13.3]} 60... Bc1+ {[%clk 0:01:00.6]} 61.
Kf2 {[%clk 0:00:13.2]} 61... Rh3 {[%clk 0:00:53.4]} 62. Re4+ {[%clk 0:00:13.1]}
62... Kd5 {[%clk 0:00:52]} 63. Re2 {[%clk 0:00:12.4]} 63... Bf4 {[%clk
0:00:50.4]} 64. Ke1 {[%clk 0:00:11.2]} 64... Rh1+ {[%clk 0:00:47.5]} 65. Kf2
{[%clk 0:00:10.8]} 65... Rh2+ {[%clk 0:00:44.9]} 66. Kf3 {[%clk 0:00:10.4]}
66... Rh3+ {[%clk 0:00:44.3]} 67. Kf2 {[%clk 0:00:09.8]} 67... Rc3 {[%clk
0:00:43.5]} 68. Be4+ {[%clk 0:00:09]} 68... Kd4 {[%clk 0:00:42.5]} 69. Bf5
{[%clk 0:00:08.9]} 69... Be3+ {[%clk 0:00:40.4]} 70. Kf3 {[%clk 0:00:08]} 70...
Bc1+ {[%clk 0:00:37.5]} 71. Kf2 {[%clk 0:00:07.9]} 71... Be3+ {[%clk 0:00:36.5]}
72. Kf3 {[%clk 0:00:07.2]} 72... Ra3 {[%clk 0:00:32.5]} 73. Kg2 {[%clk
0:00:06.1]} 73... Ra7 {[%clk 0:00:21.6]} 74. Kf1 {[%clk 0:00:05.5]} 74... Bf4
{[%clk 0:00:19.3]} 75. Kg2 {[%clk 0:00:05.4]} 75... Ra3 {[%clk 0:00:16.8]} 76.
Re4+ {[%clk 0:00:05.3]} 76... Kd5 {[%clk 0:00:15.5]} 77. Re2 {[%clk 0:00:05.2]}
77... Rc3 {[%clk 0:00:14.3]} 78. Kf2 {[%clk 0:00:05.1]} 78... Kd4 {[%clk
0:00:13.6]} 79. Be4 {[%clk 0:00:05]} 79... Be3+ {[%clk 0:00:13]} 80. Kf3 {[%clk
0:00:04.2]} 80... Bd2+ {[%clk 0:00:11.6]} 81. Kf2 {[%clk 0:00:04.1]} 81... Re3
{[%clk 0:00:10.7]} 82. Bf5 {[%clk 0:00:04]} 82... Rxe2+ {[%clk 0:00:09.7]} 83.
Kxe2 {[%clk 0:00:03.9]} 83... Bf4 {[%clk 0:00:09.2]} 84. Kf1 {[%clk 0:00:03.8]}
84... Ke5 {[%clk 0:00:08.8]} 85. Kg2 {[%clk 0:00:03.7]} 85... Kd4 {[%clk
0:00:08.2]} 86. Kf1 {[%clk 0:00:03.6]} 86... Ke3 {[%clk 0:00:08]} 87. Ke1 {[%clk
0:00:02.8]} 87... Kf3 {[%clk 0:00:07.5]} 88. Kd1 {[%clk 0:00:02.7]} 88... Kg3
{[%clk 0:00:07.4]} 89. Kc2 {[%clk 0:00:02.6]} 89... Kf3 {[%clk 0:00:07.2]} 90.
Kb3 {[%clk 0:00:02.5]} 90... Kf2 {[%clk 0:00:06.9]} 91. Kc4 {[%clk 0:00:02.4]}
91... Ke3 {[%clk 0:00:06.6]} 92. Kb3 {[%clk 0:00:02.3]} 92... Kd4 {[%clk
0:00:06.1]} 93. Bg6 {[%clk 0:00:01.8]} 93... Ke3 {[%clk 0:00:05.8]} 94. Bf5
{[%clk 0:00:01.7]} 94... Kd4 {[%clk 0:00:05.6]} 95. Bg6 {[%clk 0:00:01.6]} 95...
Ke3 {[%clk 0:00:05.3]} 96. Bf5 {[%clk 0:00:01.5]} 1/2-1/2

[Event "Live Chess"]
[Site "Chess.com"]
[Date "2023.05.21"]
[Round "-"]
[White "ClassyChameleon"]
[Black "Hussamalhaidar"]
[Result "0-1"]
[WhiteElo "1100"]
[BlackElo "1103"]
[TimeControl "300"]
[EndTime "18:11:18 PDT"]
[Termination "Hussamalhaidar won by resignation"]

1. e4 {[%clk 0:04:57.6]} 1... Nc6 {[%clk 0:04:48]} 2. c3 {[%clk 0:04:52.9]} 2...
e5 {[%clk 0:04:47]} 3. Nf3 {[%clk 0:04:50.3]} 3... Nf6 {[%clk 0:04:44.2]} 4. d4
{[%clk 0:04:47.3]} 4... exd4 {[%clk 0:04:42.8]} 5. e5 {[%clk 0:04:46.6]} 5...
Ng4 {[%clk 0:04:32.4]} 6. cxd4 {[%clk 0:04:43.6]} 6... Bb4+ {[%clk 0:04:25.6]}
7. Nc3 {[%clk 0:04:40.1]} 7... O-O {[%clk 0:04:16.4]} 8. a3 {[%clk 0:04:35.7]}
8... Ba5 {[%clk 0:04:14]} 9. b4 {[%clk 0:04:34.7]} 9... Nxb4 {[%clk 0:04:11.4]}
10. axb4 {[%clk 0:04:33.8]} 10... Bxb4 {[%clk 0:04:10.4]} 11. Be2 {[%clk
0:04:30.5]} 11... d6 {[%clk 0:04:06.4]} 12. Bd2 {[%clk 0:04:26.8]} 12... dxe5
{[%clk 0:04:02.8]} 13. Nxe5 {[%clk 0:04:24.4]} 13... Nxe5 {[%clk 0:03:58.6]} 14.
dxe5 {[%clk 0:04:23.6]} 14... Re8 {[%clk 0:03:40.1]} 15. Qa4 {[%clk 0:04:09.7]}
15... a5 {[%clk 0:03:25.9]} 16. O-O {[%clk 0:04:06.4]} 16... Rxe5 {[%clk
0:03:22.2]} 17. Rfd1 {[%clk 0:03:58.9]} 17... Rxe2 {[%clk 0:03:10.9]} 18. Nxe2
{[%clk 0:03:55]} 18... Bxd2 {[%clk 0:03:09]} 19. Nf4 {[%clk 0:03:48.6]} 19...
Bg4 {[%clk 0:02:46.3]} 20. f3 {[%clk 0:03:28.2]} 20... Be3+ {[%clk 0:02:37.6]}
21. Kh1 {[%clk 0:03:25.2]} 21... Qg5 {[%clk 0:01:57.8]} 22. fxg4 {[%clk
0:03:09.7]} 22... Qxf4 {[%clk 0:01:47.1]} 23. Re1 {[%clk 0:03:07.1]} 23... Qxa4
{[%clk 0:01:40.3]} 24. Rxe3 {[%clk 0:03:05.2]} 24... Qxa1+ {[%clk 0:01:38.1]}
0-1

[Event "Live Chess"]
[Site "Chess.com"]
[Date "2023.05.21"]
[Round "-"]
[White "Conradical12"]
[Black "Doge_Dandolo"]
[Result "1/2-1/2"]
[WhiteElo "1643"]
[BlackElo "1925"]
[TimeControl "300"]
[EndTime "18:11:22 PDT"]
[Termination "Game drawn - insufficient material"]

1. e4 {[%clk 0:04:57.8]} 1... c6 {[%clk 0:04:58.6]} 2. Nf3 {[%clk 0:04:56.1]}
2... d5 {[%clk 0:04:57.9]} 3. exd5 {[%clk 0:04:54.9]} 3... cxd5 {[%clk
0:04:56.4]} 4. d4 {[%clk 0:04:54.4]} 4... Nc6 {[%clk 0:04:54.3]} 5. c4 {[%clk
0:04:53.6]} 5... Nf6 {[%clk 0:04:52.1]} 6. Nc3 {[%clk 0:04:52.9]} 6... e6 {[%clk
0:04:50.1]} 7. Bg5 {[%clk 0:04:51.7]} 7... Bb4 {[%clk 0:04:47.3]} 8. Be2 {[%clk
0:04:49.4]} 8... dxc4 {[%clk 0:04:46.4]} 9. Bxc4 {[%clk 0:04:47.4]} 9... O-O
{[%clk 0:04:44.8]} 10. O-O {[%clk 0:04:46.2]} 10... Bd7 {[%clk 0:04:33.6]} 11.
Bd3 {[%clk 0:04:45.2]} 11... h6 {[%clk 0:04:29.8]} 12. Bc1 {[%clk 0:04:39.4]}
12... Ne7 {[%clk 0:04:26.6]} 13. a3 {[%clk 0:04:33.7]} 13... Bxc3 {[%clk
0:04:23.2]} 14. bxc3 {[%clk 0:04:28.9]} 14... Rc8 {[%clk 0:04:21.3]} 15. Bd2
{[%clk 0:04:26.4]} 15... Qc7 {[%clk 0:04:11.5]} 16. Rb1 {[%clk 0:04:21.8]} 16...
Bc6 {[%clk 0:04:09.1]} 17. Ne5 {[%clk 0:04:16.1]} 17... Bd5 {[%clk 0:04:01.4]}
18. Qc1 {[%clk 0:04:12.9]} 18... Rfd8 {[%clk 0:03:50.6]} 19. Bxh6 {[%clk
0:04:10.7]} 19... gxh6 {[%clk 0:03:48.7]} 20. Qxh6 {[%clk 0:04:07.8]} 20... Ng6
{[%clk 0:03:35]} 21. Bxg6 {[%clk 0:03:49.1]} 21... fxg6 {[%clk 0:03:33.5]} 22.
Qxg6+ {[%clk 0:03:45.6]} 22... Qg7 {[%clk 0:03:32.1]} 23. Rfc1 {[%clk
0:03:38.9]} 23... Qxg6 {[%clk 0:03:18.3]} 24. Nxg6 {[%clk 0:03:37.7]} 24... Bc4
{[%clk 0:03:12.3]} 25. Ne7+ {[%clk 0:03:35.2]} 25... Kf7 {[%clk 0:03:10.2]} 26.
Nxc8 {[%clk 0:03:34]} 26... Rxc8 {[%clk 0:03:09.3]} 27. Rxb7+ {[%clk 0:03:33.3]}
27... Kg6 {[%clk 0:03:07.6]} 28. Rxa7 {[%clk 0:03:31.7]} 28... Kf5 {[%clk
0:03:05.6]} 29. Ra5+ {[%clk 0:03:29.7]} 29... Ke4 {[%clk 0:03:03.3]} 30. Re5+
{[%clk 0:03:28.6]} 30... Kd3 {[%clk 0:03:01.4]} 31. Rc5 {[%clk 0:03:24.4]} 31...
Rg8 {[%clk 0:02:57.2]} 32. Rf1 {[%clk 0:03:13]} 32... Bd5 {[%clk 0:02:55.3]} 33.
f3 {[%clk 0:03:02.2]} 33... Nh5 {[%clk 0:02:52.9]} 34. c4 {[%clk 0:02:49.2]}
34... Kxd4 {[%clk 0:02:51.2]} 35. Rb5 {[%clk 0:02:43.5]} 35... Nf4 {[%clk
0:02:48]} 36. cxd5 {[%clk 0:02:39.5]} 36... Nxg2 {[%clk 0:02:46.5]} 37. Kh1
{[%clk 0:02:37.6]} 37... Ne3 {[%clk 0:02:40]} 38. dxe6 {[%clk 0:02:32.9]} 38...
Nxf1 {[%clk 0:02:37.5]} 39. Rb4+ {[%clk 0:02:21.2]} 39... Kd5 {[%clk 0:02:35.2]}
40. Re4 {[%clk 0:02:17.2]} 40... Nd2 {[%clk 0:02:32.9]} 41. Re3 {[%clk
0:02:12.9]} 41... Kd4 {[%clk 0:02:30]} 42. Re1 {[%clk 0:01:56.7]} 42... Nxf3
{[%clk 0:02:27.9]} 43. Rf1 {[%clk 0:01:50.7]} 43... Nd2 {[%clk 0:02:22.8]} 44.
Rd1 {[%clk 0:01:45.8]} 44... Ke3 {[%clk 0:02:21.6]} 45. a4 {[%clk 0:01:20.9]}
45... Ke2 {[%clk 0:02:19.7]} 46. Rg1 {[%clk 0:01:17.3]} 46... Re8 {[%clk
0:02:14.6]} 47. Rg2+ {[%clk 0:01:15.4]} 47... Ke3 {[%clk 0:02:11.7]} 48. Rg1
{[%clk 0:01:14.1]} 48... Nf3 {[%clk 0:02:07]} 49. Rg6 {[%clk 0:01:05.7]} 49...
Rh8 {[%clk 0:02:00.7]} 50. Kg2 {[%clk 0:00:56.7]} 50... Rxh2+ {[%clk 0:01:58]}
51. Kg3 {[%clk 0:00:55.7]} 51... Rh1 {[%clk 0:01:54.7]} 52. Kg2 {[%clk
0:00:52.9]} 52... Rh2+ {[%clk 0:01:52.7]} 53. Kg3 {[%clk 0:00:47.8]} 53... Rh1
{[%clk 0:01:51.2]} 54. Kg4 {[%clk 0:00:45.3]} 54... Ne5+ {[%clk 0:01:47.6]} 55.
Kf5 {[%clk 0:00:43]} 55... Nxg6 {[%clk 0:01:46.5]} 56. Kxg6 {[%clk 0:00:41.9]}
56... Kd4 {[%clk 0:01:45.3]} 57. e7 {[%clk 0:00:38.7]} 57... Re1 {[%clk
0:01:42.1]} 58. Kf7 {[%clk 0:00:37.6]} 58... Kc5 {[%clk 0:01:40.6]} 59. e8=Q
{[%clk 0:00:34.5]} 59... Rxe8 {[%clk 0:01:40]} 60. Kxe8 {[%clk 0:00:34.4]} 60...
Kb4 {[%clk 0:01:39.4]} 61. a5 {[%clk 0:00:33.6]} 61... Kxa5 {[%clk 0:01:38.4]}
1/2-1/2

[Event "Live Chess"]
[Site "Chess.com"]
[Date "2023.05.21"]
[Round "-"]
[White "smoggyrabbit"]
[Black "NateSolon"]
[Result "0-1"]
[WhiteElo "1745"]
[BlackElo "2677"]
[TimeControl "300"]
[EndTime "18:11:43 PDT"]
[Termination "NateSolon won by resignation"]

1. d4 {[%clk 0:04:57.9]} 1... Nf6 {[%clk 0:04:58.7]} 2. Nf3 {[%clk 0:04:56.7]}
2... c5 {[%clk 0:04:58.6]} 3. d5 {[%clk 0:04:52.4]} 3... b5 {[%clk 0:04:57.7]}
4. Nc3 {[%clk 0:04:47.6]} 4... b4 {[%clk 0:04:56.8]} 5. Nb1 {[%clk 0:04:39.7]}
5... Bb7 {[%clk 0:04:55.8]} 6. c4 {[%clk 0:04:36.1]} 6... d6 {[%clk 0:04:54.7]}
7. Nbd2 {[%clk 0:04:33.5]} 7... e6 {[%clk 0:04:52.7]} 8. e4 {[%clk 0:04:29.2]}
8... exd5 {[%clk 0:04:48.2]} 9. exd5 {[%clk 0:04:26.6]} 9... g6 {[%clk
0:04:45.9]} 10. Bd3 {[%clk 0:04:25.3]} 10... Bg7 {[%clk 0:04:44.9]} 11. O-O
{[%clk 0:04:24]} 11... O-O {[%clk 0:04:44.2]} 12. Ne4 {[%clk 0:04:17.4]} 12...
Nxe4 {[%clk 0:04:42.9]} 13. Bxe4 {[%clk 0:04:16.6]} 13... Nd7 {[%clk 0:04:42.4]}
14. Re1 {[%clk 0:04:13.4]} 14... Re8 {[%clk 0:04:38.2]} 15. Bd3 {[%clk
0:04:02.6]} 15... Qc7 {[%clk 0:04:37.1]} 16. Qc2 {[%clk 0:03:55.6]} 16... Rxe1+
{[%clk 0:04:33.4]} 17. Nxe1 {[%clk 0:03:54.2]} 17... Re8 {[%clk 0:04:31.6]} 18.
Nf3 {[%clk 0:03:48.9]} 18... Ne5 {[%clk 0:04:24.6]} 19. Nxe5 {[%clk 0:03:44.4]}
19... Bxe5 {[%clk 0:04:24.5]} 20. Be3 {[%clk 0:03:37.9]} 20... Qe7 {[%clk
0:04:15.3]} 21. Re1 {[%clk 0:03:32.6]} 21... Qh4 {[%clk 0:04:14.4]} 22. h3
{[%clk 0:03:30.1]} 22... Bc8 {[%clk 0:04:13.2]} 23. Qa4 {[%clk 0:03:26.9]} 23...
Re7 {[%clk 0:04:10]} 24. Qa5 {[%clk 0:03:22.6]} 24... Re8 {[%clk 0:03:58.1]} 25.
Qa4 {[%clk 0:03:19]} 25... Qe7 {[%clk 0:03:45.4]} 26. Bf4 {[%clk 0:03:10.6]}
26... f6 {[%clk 0:03:35.8]} 27. Bxe5 {[%clk 0:03:06.7]} 27... fxe5 {[%clk
0:03:35.7]} 28. Be4 {[%clk 0:02:55.2]} 28... Rf8 {[%clk 0:03:32.8]} 29. Bf3
{[%clk 0:02:51.9]} 29... Bxh3 {[%clk 0:03:28.8]} 30. Qc6 {[%clk 0:02:39.9]}
30... Qf6 {[%clk 0:03:24.4]} 31. Re3 {[%clk 0:02:24.5]} 31... Bf5 {[%clk
0:03:11.1]} 32. Qc7 {[%clk 0:02:14.4]} 32... e4 {[%clk 0:03:08.8]} 33. Bd1
{[%clk 0:01:57.9]} 33... Bc8 {[%clk 0:03:00.7]} 34. Re2 {[%clk 0:01:37.5]} 34...
Qd4 {[%clk 0:02:54.8]} 35. Bb3 {[%clk 0:01:08]} 35... Bg4 {[%clk 0:02:50.1]} 36.
Re3 {[%clk 0:00:55.4]} 36... Qd2 {[%clk 0:02:44.9]} 37. Rxe4 {[%clk 0:00:22.1]}
37... Qxf2+ {[%clk 0:02:41.3]} 38. Kh2 {[%clk 0:00:19.2]} 38... Bf3 {[%clk
0:02:27.5]} 39. Rg4 {[%clk 0:00:17.3]} 39... Bxg4 {[%clk 0:02:23.6]} 40. Qxd6
{[%clk 0:00:14.5]} 40... Qf4+ {[%clk 0:02:19.5]} 41. Qxf4 {[%clk 0:00:11.6]}
41... Rxf4 {[%clk 0:02:19.4]} 42. d6 {[%clk 0:00:08.8]} 42... Rd4 {[%clk
0:02:18.4]} 43. d7 {[%clk 0:00:06.5]} 43... Bxd7 {[%clk 0:02:16.3]} 0-1

[Event "Live Chess"]
[Site "Chess.com"]
[Date "2023.05.21"]
[Round "-"]
[White "domrobson"]
[Black "whatnot126"]
[Result "1/2-1/2"]
[WhiteElo "1741"]
[BlackElo "2049"]
[TimeControl "300"]
[EndTime "18:11:44 PDT"]
[Termination "Game drawn - insufficient material"]

1. d4 {[%clk 0:04:58.5]} 1... d6 {[%clk 0:04:57.6]} 2. e4 {[%clk 0:04:55.4]}
2... Nf6 {[%clk 0:04:56.8]} 3. Nc3 {[%clk 0:04:54.1]} 3... g6 {[%clk 0:04:55.9]}
4. Nf3 {[%clk 0:04:52.3]} 4... Bg7 {[%clk 0:04:55.5]} 5. e5 {[%clk 0:04:51.3]}
5... dxe5 {[%clk 0:04:53.8]} 6. dxe5 {[%clk 0:04:50.2]} 6... Qxd1+ {[%clk
0:04:53.7]} 7. Kxd1 {[%clk 0:04:48.4]} 7... Ng4 {[%clk 0:04:52.7]} 8. Ke2 {[%clk
0:04:46.4]} 8... Nxe5 {[%clk 0:04:49]} 9. Bf4 {[%clk 0:04:45]} 9... Bg4 {[%clk
0:04:43.3]} 10. Ke3 {[%clk 0:04:40.7]} 10... Nxf3 {[%clk 0:04:28.1]} 11. gxf3
{[%clk 0:04:38.4]} 11... Bf5 {[%clk 0:04:27.2]} 12. Bxc7 {[%clk 0:04:36.4]}
12... Bxc2 {[%clk 0:04:25.8]} 13. Bb5+ {[%clk 0:04:35.2]} 13... Nc6 {[%clk
0:04:22.8]} 14. Rac1 {[%clk 0:04:33.1]} 14... Bf5 {[%clk 0:04:20.8]} 15. Ne4
{[%clk 0:04:28.2]} 15... Bd4+ {[%clk 0:04:13]} 16. Ke2 {[%clk 0:04:17.2]} 16...
O-O {[%clk 0:03:47.5]} 17. Bxc6 {[%clk 0:04:12.8]} 17... bxc6 {[%clk 0:03:46.7]}
18. Rxc6 {[%clk 0:04:12]} 18... Bxb2 {[%clk 0:03:44.2]} 19. Rb1 {[%clk
0:04:05.8]} 19... Bd4 {[%clk 0:03:41.8]} 20. Rb7 {[%clk 0:04:03.5]} 20... Be6
{[%clk 0:03:33]} 21. Nc3 {[%clk 0:03:59]} 21... Rfc8 {[%clk 0:03:25.8]} 22. Kd3
{[%clk 0:03:52.9]} 22... Bxc3 {[%clk 0:03:15.2]} 23. Rxc3 {[%clk 0:03:51.5]}
23... Bxa2 {[%clk 0:03:08.8]} 24. Ra3 {[%clk 0:03:50.2]} 24... Bd5 {[%clk
0:03:07.6]} 25. Rbxa7 {[%clk 0:03:48.6]} 25... Bxf3 {[%clk 0:03:05.8]} 26. Rxa8
{[%clk 0:03:42.4]} 26... Rxa8 {[%clk 0:03:04.3]} 27. Rxa8+ {[%clk 0:03:40.9]}
27... Bxa8 {[%clk 0:03:03.2]} 28. h4 {[%clk 0:03:37.5]} 28... f6 {[%clk
0:02:57.5]} 29. Ke3 {[%clk 0:03:33.6]} 29... e5 {[%clk 0:02:56.7]} 30. f4 {[%clk
0:03:26.9]} 30... exf4+ {[%clk 0:02:54.7]} 31. Kxf4 {[%clk 0:03:25.6]} 31... Kf7
{[%clk 0:02:54]} 32. Bd8 {[%clk 0:03:23.1]} 32... Ke6 {[%clk 0:02:52.4]} 33. Ba5
{[%clk 0:03:18.8]} 33... h6 {[%clk 0:02:49.7]} 34. Bc3 {[%clk 0:03:14.6]} 34...
Bd5 {[%clk 0:02:48.6]} 35. Bb2 {[%clk 0:03:12.3]} 35... Bb3 {[%clk 0:02:47.9]}
36. Bc3 {[%clk 0:03:11.3]} 36... Bd1 {[%clk 0:02:47.3]} 37. Bb2 {[%clk
0:03:10.4]} 37... g5+ {[%clk 0:02:45.7]} 38. hxg5 {[%clk 0:03:09.4]} 38... hxg5+
{[%clk 0:02:44.9]} 39. Kg3 {[%clk 0:03:08.2]} 39... Kf5 {[%clk 0:02:43.7]} 40.
Bc1 {[%clk 0:03:05.6]} 40... Ke4 {[%clk 0:02:40.9]} 41. Bd2 {[%clk 0:03:02.8]}
41... Kd3 {[%clk 0:02:35.5]} 42. Bc1 {[%clk 0:03:01.6]} 42... Kc2 {[%clk
0:02:34.6]} 43. Be3 {[%clk 0:03:00.6]} 43... Kd3 {[%clk 0:02:34.1]} 44. Bc1
{[%clk 0:02:59.6]} 44... Ke4 {[%clk 0:02:33.5]} 45. Bd2 {[%clk 0:02:58.7]} 45...
Kf5 {[%clk 0:02:32.3]} 46. Bc1 {[%clk 0:02:57.6]} 46... Kg6 {[%clk 0:02:31.8]}
47. Bd2 {[%clk 0:02:56.5]} 47... f5 {[%clk 0:02:31.2]} 48. Bc1 {[%clk
0:02:55.5]} 48... f4+ {[%clk 0:02:30.2]} 49. Bxf4 {[%clk 0:02:54.3]} 49... gxf4+
{[%clk 0:02:26.3]} 50. Kxf4 {[%clk 0:02:52.7]} 1/2-1/2

[Event "Live Chess"]
[Site "Chess.com"]
[Date "2023.05.21"]
[Round "-"]
[White "worldchessleaguelive"]
[Black "ShanthamGrarks"]
[Result "0-1"]
[WhiteElo "1358"]
[BlackElo "2002"]
[TimeControl "300"]
[EndTime "18:11:54 PDT"]
[Termination "ShanthamGrarks won by resignation"]

1. d4 {[%clk 0:04:58.4]} 1... Nf6 {[%clk 0:04:54.1]} 2. Bf4 {[%clk 0:04:56.7]}
2... d6 {[%clk 0:04:51.4]} 3. Nf3 {[%clk 0:04:55.2]} 3... h6 {[%clk 0:04:49.5]}
4. e3 {[%clk 0:04:53.9]} 4... g5 {[%clk 0:04:48.5]} 5. Bg3 {[%clk 0:04:52.1]}
5... Bg7 {[%clk 0:04:48.1]} 6. Be2 {[%clk 0:04:50.8]} 6... Ne4 {[%clk
0:04:47.1]} 7. O-O {[%clk 0:04:49.5]} 7... Nxg3 {[%clk 0:04:46.2]} 8. fxg3
{[%clk 0:04:48]} 8... Bf6 {[%clk 0:04:43.5]} 9. Nbd2 {[%clk 0:04:44.9]} 9... h5
{[%clk 0:04:42]} 10. Ne4 {[%clk 0:04:43.6]} 10... g4 {[%clk 0:04:26.6]} 11.
Nxf6+ {[%clk 0:04:41.9]} 11... exf6 {[%clk 0:04:25.5]} 12. Nh4 {[%clk
0:04:40.5]} 12... Be6 {[%clk 0:04:22.9]} 13. Nf5 {[%clk 0:04:37.1]} 13... Bxf5
{[%clk 0:04:17.2]} 14. Rxf5 {[%clk 0:04:35.5]} 14... Nd7 {[%clk 0:04:16.6]} 15.
Qf1 {[%clk 0:04:28.4]} 15... Qe7 {[%clk 0:04:15.3]} 16. Qf2 {[%clk 0:04:22.4]}
16... O-O-O {[%clk 0:04:12.5]} 17. Re1 {[%clk 0:04:17.5]} 17... Kb8 {[%clk
0:04:05.3]} 18. Bb5 {[%clk 0:04:09.1]} 18... c6 {[%clk 0:04:02.3]} 19. Bd3
{[%clk 0:03:59.7]} 19... d5 {[%clk 0:03:58.2]} 20. Qf4+ {[%clk 0:03:51.9]} 20...
Ka8 {[%clk 0:03:55.1]} 21. Qf1 {[%clk 0:03:45]} 21... h4 {[%clk 0:03:50.2]} 22.
Qf2 {[%clk 0:03:39.4]} 22... h3 {[%clk 0:03:43.8]} 23. Qe2 {[%clk 0:03:31.4]}
23... hxg2 {[%clk 0:03:41.3]} 24. Kxg2 {[%clk 0:03:29.4]} 24... Rdg8 {[%clk
0:03:34.6]} 25. Rf4 {[%clk 0:03:18.9]} 25... Qb4 {[%clk 0:03:22.1]} 26. c3
{[%clk 0:03:03.8]} 26... Qd6 {[%clk 0:03:14.6]} 27. Rxg4 {[%clk 0:02:57.5]}
27... Rxg4 {[%clk 0:03:13]} 28. Qxg4 {[%clk 0:02:55.9]} 28... a6 {[%clk
0:03:05.3]} 29. Qg7 {[%clk 0:02:53.4]} 29... Rf8 {[%clk 0:02:57.7]} 30. Bf5
{[%clk 0:02:42]} 30... Nb6 {[%clk 0:02:51.4]} 31. e4 {[%clk 0:02:33.7]} 31...
dxe4 {[%clk 0:02:47.5]} 32. Rxe4 {[%clk 0:02:28]} 32... Nc4 {[%clk 0:02:45.3]}
33. Re2 {[%clk 0:01:57.6]} 33... Ka7 {[%clk 0:02:33.7]} 34. b3 {[%clk
0:01:46.4]} 34... Nb6 {[%clk 0:02:32]} 35. c4 {[%clk 0:01:42.3]} 35... c5 {[%clk
0:02:27.4]} 36. d5 {[%clk 0:01:35.7]} 36... a5 {[%clk 0:02:13.4]} 37. Rf2 {[%clk
0:01:26.8]} 37... Na8 {[%clk 0:01:57.8]} 38. Bg4 {[%clk 0:01:22.9]} 38... f5
{[%clk 0:01:50.7]} 39. Rxf5 {[%clk 0:01:14.1]} 39... f6 {[%clk 0:01:48.2]} 40.
h4 {[%clk 0:01:06.3]} 40... Nc7 {[%clk 0:01:46.5]} 41. h5 {[%clk 0:01:01.5]}
41... Ne8 {[%clk 0:01:42.5]} 42. Qg6 {[%clk 0:00:50.3]} 42... Qe7 {[%clk
0:01:40]} 43. h6 {[%clk 0:00:41.5]} 43... Nd6 {[%clk 0:01:39.1]} 44. Rf2 {[%clk
0:00:22.6]} 44... Qe4+ {[%clk 0:01:33.9]} 45. Bf3 {[%clk 0:00:20.4]} 45... Qxg6
{[%clk 0:01:31]} 0-1